{"text_format":"3","workbook":"xlsx","n_sheets":6,"sheets":["HỌC KỲ","TÍN CHỈ","NGÂN SÁCH","CHI PHÍ RÒNG HÀNG THÁNG","CHI PHÍ HỌC KỲ","SÁCH"],"not_rendered":{"defined_names":21},"read":"whole","date_system":"1900"}

{"sheet":"HỌC KỲ","index":0,"n_rows":29,"n_cols":9,"rows_kept":29,"merged":[[2,3,2,4]]}
[null,"LỊCH HỌC CỦA TÔI"]
[null,"HỌC KỲ MÙA THU"]
[null,null,"THỜI GIAN BẮT ĐẦU","THỜI LưỢNG",null,"NĂM"]
[null,null,"09:00:00",60,"(Theo Phút)"]
[null,"THỜI GIAN ","T2","T3","T4","T5","T6","T7","CN"]
[null,{"$f":"Thời_gian_Bắt_đầu+TIME(0,(ROW(A1)-1)*Khoảng_Thời_gian,0)","v":"09:00:00"},"Ăn sáng","Ăn sáng","Ăn sáng","Ăn sáng","Ăn sáng"]
[null,"10:00:00","Kinh doanh: Tòa nhà Giảng đường B, Phòng 256"]
[null,"11:00:00",{"$nulls":3},"Vật lý: Phòng thí nghiệm \nTòa nhà J, Phòng 309"]
[null,"12:00:00"]
[null,"13:00:00"]
[null,"14:00:00"]
[null,"15:00:00"]
[null,"16:00:00"]
[null,"17:00:00"]
[null,"18:00:00"]
[null,"19:00:00"]
[null,"20:00:00"]
[null,"21:00:00"]
[null,"22:00:00"]
[null,"23:00:00"]
[null,1]
[null,1.0416666666666665]
[null,1.0833333333333335]
[null,1.125]
[null,1.1666666666666665]
[null,1.2083333333333335]
[null,1.25]
[null,1.2916666666666665]
[null,1.3333333333333335]

{"sheet":"TÍN CHỈ","index":1,"n_rows":17,"n_cols":8,"rows_kept":17}
[null,"ĐẠI HỌC"]
[null,"TRÌNH LẬP KẾ HOẠCH TÍN CHỈ"]
[null,"Tiêu đề Bằng",{"$f":"Năm","v":"NĂM"}]
[null,"TIẾN ĐỘ TỔNG THỂ",null,"TIẾN ĐỘ TỔNG THỂ"]
[null,{"$f":"AVERAGE(Các_khóa_học[ĐIỂM])","v":3.5},{"$f":"IFERROR(TEXT(AVERAGEIF(Các_khóa_học[ĐÃ HOÀN THÀNH],\"Có\",Các_khóa_học[ĐIỂM]),\"0,00\"),\"0,00\")&\" GPA hiện tại\"","v":"3,50 GPA hiện tại"},{"$f":"COUNTIF(Các_khóa_học[ĐÃ HOÀN THÀNH],\"Có\")/COUNTA(Các_khóa_học[TIÊU ĐỀ KHÓA HỌC])","v":0.6666666666666666},{"$f":"TEXT(COUNTIF(Các_khóa_học[ĐÃ HOÀN THÀNH],\"Có\")/COUNTA(Các_khóa_học[TIÊU ĐỀ KHÓA HỌC]),\"0%\")&\" Đã hoàn thành\"","v":"67% Đã hoàn thành"}]
[null,"Lưu ý: Tóm tắt tín chỉ sau đây được tự động điền bằng các mục nhập trong bảng Khóa học Đại học bên dưới"]
[null,"YÊU CẦU","TỔNG SỐ TÍN CHỈ","ĐÃ ĐẠT","CẦN THIẾT"]
[null,"Chuyên ngành Chính",{"$f":"IF(SUMIF(Các_khóa_học[YÊU CẦU],'TÍN CHỈ'!$B8,Các_khóa_học[TÍN CHỈ])=0,\"0\",SUMIF(Các_khóa_học[YÊU CẦU],'TÍN CHỈ'!$B8,Các_khóa_học[TÍN CHỈ]))","v":4},{"$f":"SUMIFS(Các_khóa_học[TÍN CHỈ],Các_khóa_học[YÊU CẦU],'TÍN CHỈ'!$B8,Các_khóa_học[ĐÃ HOÀN THÀNH],\"Có\")","v":4},{"$f":"SUMIF(Các_khóa_học[YÊU CẦU],'TÍN CHỈ'!$B8,Các_khóa_học[TÍN CHỈ])-SUMIFS(Các_khóa_học[TÍN CHỈ],Các_khóa_học[YÊU CẦU],'TÍN CHỈ'!$B8,Các_khóa_học[ĐÃ HOÀN THÀNH],\"Có\")","v":0}]
[null,"Chuyên ngành Phụ",{"$f":"IF(SUMIF(Các_khóa_học[YÊU CẦU],'TÍN CHỈ'!$B9,Các_khóa_học[TÍN CHỈ])=0,\"0\",SUMIF(Các_khóa_học[YÊU CẦU],'TÍN CHỈ'!$B9,Các_khóa_học[TÍN CHỈ]))","v":3},{"$f":"SUMIFS(Các_khóa_học[TÍN CHỈ],Các_khóa_học[YÊU CẦU],'TÍN CHỈ'!$B9,Các_khóa_học[ĐÃ HOÀN THÀNH],\"Có\")","v":0},{"$f":"SUMIF(Các_khóa_học[YÊU CẦU],'TÍN CHỈ'!$B9,Các_khóa_học[TÍN CHỈ])-SUMIFS(Các_khóa_học[TÍN CHỈ],Các_khóa_học[YÊU CẦU],'TÍN CHỈ'!$B9,Các_khóa_học[ĐÃ HOÀN THÀNH],\"Có\")","v":3}]
[null,"Khóa học Tùy chọn",{"$f":"IF(SUMIF(Các_khóa_học[YÊU CẦU],'TÍN CHỈ'!$B10,Các_khóa_học[TÍN CHỈ])=0,\"0\",SUMIF(Các_khóa_học[YÊU CẦU],'TÍN CHỈ'!$B10,Các_khóa_học[TÍN CHỈ]))","v":2},{"$f":"SUMIFS(Các_khóa_học[TÍN CHỈ],Các_khóa_học[YÊU CẦU],'TÍN CHỈ'!$B10,Các_khóa_học[ĐÃ HOÀN THÀNH],\"Có\")","v":2},{"$f":"SUMIF(Các_khóa_học[YÊU CẦU],'TÍN CHỈ'!$B10,Các_khóa_học[TÍN CHỈ])-SUMIFS(Các_khóa_học[TÍN CHỈ],Các_khóa_học[YÊU CẦU],'TÍN CHỈ'!$B10,Các_khóa_học[ĐÃ HOÀN THÀNH],\"Có\")","v":0}]
[null,"Nghiên cứu Chung",{"$f":"IF(SUMIF(Các_khóa_học[YÊU CẦU],'TÍN CHỈ'!$B11,Các_khóa_học[TÍN CHỈ])=0,\"0\",SUMIF(Các_khóa_học[YÊU CẦU],'TÍN CHỈ'!$B11,Các_khóa_học[TÍN CHỈ]))","v":"0"},{"$f":"SUMIFS(Các_khóa_học[TÍN CHỈ],Các_khóa_học[YÊU CẦU],'TÍN CHỈ'!$B11,Các_khóa_học[ĐÃ HOÀN THÀNH],\"Có\")","v":0},{"$f":"SUMIF(Các_khóa_học[YÊU CẦU],'TÍN CHỈ'!$B11,Các_khóa_học[TÍN CHỈ])-SUMIFS(Các_khóa_học[TÍN CHỈ],Các_khóa_học[YÊU CẦU],'TÍN CHỈ'!$B11,Các_khóa_học[ĐÃ HOÀN THÀNH],\"Có\")","v":0}]
[null,"Tổng",{"$f":"SUBTOTAL(109,'TÍN CHỈ'!$C$8:$C$11)","v":9},{"$f":"SUBTOTAL(109,'TÍN CHỈ'!$D$8:$D$11)","v":6},{"$f":"SUBTOTAL(109,'TÍN CHỈ'!$E$8:$E$11)","v":3}]
[null,"Các khóa học"]
[null,"TIÊU ĐỀ KHÓA HỌC","# KHÓA HỌC","YÊU CẦU","TÍN CHỈ","ĐÃ HOÀN THÀNH","ĐIỂM","HỌC KỲ"]
[null,"Khóa học 1","Số","Chuyên ngành Chính",4,"Có",{"v":4,"d":"4.0"},"Học kỳ 1"]
[null,"Khóa học 2","Số","Chuyên ngành Phụ",3,"Không",null,"Học kỳ 1"]
[null,"Khóa học 3","Số","Khóa học Tùy chọn",2,"Có",{"v":3,"d":"3.0"},"Học kỳ 1"]

{"sheet":"NGÂN SÁCH","index":2,"n_rows":15,"n_cols":4,"rows_kept":15,"merged":[[5,1,5,2]]}
[null,{"$f":"Đại_học","v":"ĐẠI HỌC"}]
[null,"BẢNG THEO DÕI NGÂN SÁCH"]
[null,"Ngân sách của Tôi",{"$f":"Năm","v":"NĂM"}]
[null,"PHẦN TRĂM THU NHẬP ĐÃ CHI TIÊU"]
[null,{"$f":"CHI_PHÍ_RÒNG_HÀNG_THÁNG/THU_NHẬP_RÒNG_HÀNG_THÁNG","v":{"v":0.7454545454545455,"d":"1 ₫"}}]
[null,{"$f":"B5","v":0.7454545454545455}]
[null,"THU NHẬP RÒNG HÀNG THÁNG","CHI PHÍ RÒNG HÀNG THÁNG","SỐ DƯ"]
[null,{"$f":"C10","v":{"v":2750,"d":"2,750 ₫"}},{"$f":"'CHI PHÍ RÒNG HÀNG THÁNG'!C4+'CHI PHÍ HỌC KỲ'!D4","v":{"v":2050,"d":"2,050 ₫"}},{"$f":"THU_NHẬP_RÒNG_HÀNG_THÁNG-CHI_PHÍ_RÒNG_HÀNG_THÁNG","v":{"v":700,"d":"700 ₫"}}]
[null,"Số tháng trong học kỳ",4]
[null,"THU NHẬP HÀNG THÁNG",{"$f":"SUM(Thu_nhập_Hàng_tháng[SỐ TIỀN])","v":{"v":2750,"d":"2,750 ₫"}}]
[null,"MỤC","SỐ TIỀN"]
[null,"Thu nhập cố định",{"v":1500,"d":"1,500 ₫"}]
[null,"Hỗ trợ tài chính",{"v":500,"d":"500 ₫"}]
[null,"Khoản vay",{"v":500,"d":"500 ₫"}]
[null,"Thu nhập khác",{"v":250,"d":"250 ₫"}]

{"sheet":"CHI PHÍ RÒNG HÀNG THÁNG","index":3,"n_rows":15,"n_cols":3,"rows_kept":15}
[null,{"$f":"Đại_học","v":"ĐẠI HỌC"}]
[null,"BẢNG THEO DÕI NGÂN SÁCH"]
[null,"Chi phí Hàng tháng",{"$f":"Năm","v":"NĂM"}]
[null,"CHI PHÍ HÀNG THÁNG",{"$f":"SUM(Chi_phí_Hàng_tháng[SỐ TIỀN])","v":{"v":1675,"d":"1,675 ₫"}}]
[null,"MỤC","SỐ TIỀN"]
[null,"Tiền thuê",{"v":300,"d":"300 ₫"}]
[null,"Tiện ích",{"v":50,"d":"50 ₫"}]
[null,"Điện thoại di động",{"v":75,"d":"75 ₫"}]
[null,"Tạp phẩm",{"v":250,"d":"250 ₫"}]
[null,"Chi phí ô tô",{"v":50,"d":"50 ₫"}]
[null,"Khoản vay học viên",{"v":500,"d":"500 ₫"}]
[null,"Thẻ tín dụng",{"v":275,"d":"275 ₫"}]
[null,"Bảo hiểm",{"v":125,"d":"125 ₫"}]
[null,"Giải trí",{"v":50,"d":"50 ₫"}]
[null,"Khác",{"v":0,"d":"0 ₫"}]

{"sheet":"CHI PHÍ HỌC KỲ","index":4,"n_rows":11,"n_cols":4,"rows_kept":11}
[null,{"$f":"Đại_học","v":"ĐẠI HỌC"}]
[null,"BẢNG THEO DÕI NGÂN SÁCH"]
[null,"Chi phí Học kỳ",{"$f":"Năm","v":"NĂM"}]
[null,"CHI PHÍ HỌC KỲ (Tổng/Mỗi Tháng)",{"$f":"SUM(CHI_PHÍ_HỌC_KỲ[SỐ TIỀN])","v":{"v":1500,"d":"1,500 ₫"}},{"$f":"SUM(CHI_PHÍ_HỌC_KỲ[MỖI THÁNG])","v":{"v":375,"d":"375 ₫"}}]
[null,"MỤC","SỐ TIỀN","MỖI THÁNG"]
[null,"Học phí",{"v":750,"d":"750 ₫"},{"$f":"CHI_PHÍ_HỌC_KỲ[[#This Row],[SỐ TIỀN]]/Tháng_trong_học_kỳ","v":{"v":187.5,"d":"188 ₫"}}]
[null,"Phí sử dụng phòng thí nghiệm",{"v":250,"d":"250 ₫"},{"$f":"CHI_PHÍ_HỌC_KỲ[[#This Row],[SỐ TIỀN]]/Tháng_trong_học_kỳ","v":{"v":62.5,"d":"63 ₫"}}]
[null,"Sách",{"v":500,"d":"500 ₫"},{"$f":"CHI_PHÍ_HỌC_KỲ[[#This Row],[SỐ TIỀN]]/Tháng_trong_học_kỳ","v":{"v":125,"d":"125 ₫"}}]
[null,"Tiền đặt cọc",{"v":0,"d":"0 ₫"},{"$f":"CHI_PHÍ_HỌC_KỲ[[#This Row],[SỐ TIỀN]]/Tháng_trong_học_kỳ","v":{"v":0,"d":"0 ₫"}}]
[null,"Phương tiện đi lại",{"v":0,"d":"0 ₫"},{"$f":"CHI_PHÍ_HỌC_KỲ[[#This Row],[SỐ TIỀN]]/Tháng_trong_học_kỳ","v":{"v":0,"d":"0 ₫"}}]
[null,"Phí khác",{"v":0,"d":"0 ₫"},{"$f":"CHI_PHÍ_HỌC_KỲ[[#This Row],[SỐ TIỀN]]/Tháng_trong_học_kỳ","v":{"v":0,"d":"0 ₫"}}]

{"sheet":"SÁCH","index":5,"n_rows":7,"n_cols":7,"rows_kept":7}
[null,{"$f":"Đại_học","v":"ĐẠI HỌC"}]
[null,"BẢNG THEO DÕI SÁCH"]
[null,"Danh mục Sách"]
[null,"TIÊU ĐỀ","TÁC GIẢ","KHÓA HỌC","MUA Ở ĐÂU?","ISBN","GHI CHÚ"]
[null,"Tiêu đề Sách","Tác giả","Khóa học","Địa điểm","Số"]
[null,"Tiêu đề Sách","Tác giả","Khóa học","Địa điểm","Số"]
[null,"Tiêu đề Sách","Tác giả","Khóa học","Địa điểm","Số"]